bitfinex/quotes_ETHUSD_20251116
["timestamp","ask_amount","ask_price","bid_price","bid_amount"]
[1763288956322,0.466,3238.0,3237.9,0.002]
[1763288956686,1.24609832,3238.0,3237.9,0.002]
[1763288956920,1.46647974,3238.0,3237.9,0.002]
[1763288957706,1.49645573,3238.0,3237.9,0.002]
[1763288957895,1.46647974,3238.0,3237.9,0.002]
[1763288958493,4.58478185,3238.0,3237.9,0.002]
[1763288958907,5.51258772,3238.0,3237.9,0.002]
[1763288959917,7.12541866,3238.0,3237.9,0.002]
[1763288960113,7.09544267,3238.0,3237.9,0.002]
[1763288963052,4.52551173,3238.0,3237.9,0.002]
[1763288963249,0.28899832,3238.0,3237.9,0.002]
[1763288963543,0.41270041,3238.0,3237.9,0.002]
[1763288963910,0.87870041,3238.0,3237.9,0.002]
[1763288965546,1.36980041,3238.0,3237.9,0.002]
[1763288967645,1.3997764,3238.0,3237.9,0.002]
[1763288969253,0.9086764,3238.0,3237.9,0.002]
[1763288969860,1.3997764,3238.0,3237.9,0.002]
[1763288971049,4.44580511,3238.0,3237.9,0.002]
[1763288971252,3.99700252,3238.0,3237.9,0.002]
[1763288971554,0.9086764,3238.0,3237.9,0.002]
[1763288972154,3.99700252,3238.0,3237.9,0.002]
[1763288972749,0.9086764,3238.0,3237.9,0.002]
[1763288973416,0.28899832,3238.0,3237.9,2.09643094]
[1763288973632,0.28899832,3238.0,3237.9,0.4836]
[1763288973833,0.28899832,3238.0,3237.9,0.002]
[1763288974652,0.79127431,3238.0,3237.9,0.002]
[1763288974844,0.76129832,3238.0,3237.9,0.002]
[1763288975040,1.22509832,3238.0,3237.9,0.002]
[1763288975254,1.70383788,3238.0,3237.9,0.002]
[1763288975466,0.75279832,3238.0,3237.9,0.4902]
[1763288976122,1.22509832,3238.0,3237.9,0.002]
[1763288976322,1.69919832,3238.0,3237.9,0.002]
[1763288976763,1.69923114,3238.0,3237.9,0.002]
[1763288977423,1.22513114,3238.0,3237.9,0.002]
[1763288978657,0.75283114,3238.0,3237.9,0.002]
[1763288979522,0.28903114,3238.0,3237.9,0.4902]
[1763288980925,0.28903114,3238.0,3237.9,0.002]
[1763288981736,0.28903114,3238.0,3237.9,0.4902]
[1763288984330,0.28903114,3238.0,3237.9,3.5786215]
[1763288984731,0.28903114,3238.0,3237.9,0.4902]
[1763288987041,0.28903114,3238.0,3237.9,4.0488215]
[1763288987247,0.28903114,3238.0,3237.9,0.9604]
[1763288989275,0.28903114,3238.0,3237.9,0.4902]
[1763288990882,0.76133114,3238.0,3237.9,0.002]
[1763288991041,1.66779325,3238.0,3237.9,0.002]
[1763288991237,1.23543114,3238.0,3237.9,0.002]
[1763288993482,0.28903114,3238.0,3237.9,0.002]
[1763288995479,0.76133114,3238.0,3237.9,0.002]
[1763288995680,1.23543114,3238.0,3237.9,0.002]
[1763288996046,0.28903114,3238.0,3237.9,0.4902]
[1763288996544,0.76133114,3238.0,3237.9,0.002]
[1763288996739,0.28903114,3238.0,3237.9,0.002]
[1763288996943,0.28903114,3238.0,3237.9,0.4902]
[1763289000913,0.76133114,3238.0,3237.9,0.002]
[1763289001518,5.9365882,3238.0,3237.9,0.002]
[1763289001719,6.86904566,3238.0,3237.9,0.002]
[1763289001924,6.83906967,3238.0,3237.9,0.002]
[1763289002221,2.13791261,3238.0,3237.9,0.002]
[1763289002622,1.23543114,3238.0,3237.9,0.002]
[1763289003422,4.32375726,3238.0,3237.9,0.002]
[1763289003628,1.23543114,3238.0,3237.9,0.002]
[1763289006429,4.32375726,3238.0,3237.9,0.002]
[1763289007323,1.23543114,3238.0,3237.9,0.002]
[1763289007511,2.24142677,3238.0,3237.9,0.002]
[1763289008120,1.23543114,3238.0,3237.9,0.002]
[1763289009132,4.32375726,3238.0,3237.9,0.002]
[1763289010195,4.35373325,3238.0,3237.9,0.002]
[1763289010815,4.32375726,3238.0,3237.9,0.002]
[1763289013837,1.23543114,3238.0,3237.9,0.002]
[1763289014038,1.62378652,3238.0,3237.9,0.002]
[1763289015442,4.71211264,3238.0,3237.9,0.002]
[1763289015615,1.62378652,3238.0,3237.9,0.002]
[1763289015804,1.64388652,3238.0,3237.9,0.002]
[1763289016530,0.78323114,3238.0,3237.9,0.4847]
[1763289016699,0.28903114,3238.0,3237.9,0.9789]
[1763289017040,0.28903114,3238.0,3237.9,4.0673215]
[1763289018612,0.28903114,3238.0,3237.9,5.78757806]
[1763289020039,2.18425656,3239.0,3237.9,5.78757806]
[1763289020040,0.001,3239.0,3237.9,10.59625612]
[1763289020237,0.28967324,3238.9,3238.6,0.4827]
[1763289020447,0.28967324,3238.8,3238.6,0.4827]
[1763289020651,0.28967324,3238.7,3238.6,0.4827]
[1763289022014,1.24717324,3238.7,3238.0,3.08828952]
[1763289022211,1.72025656,3238.4,3237.9,0.002]
[1763289022413,0.31964923,3238.3,3237.9,3.09040832]
[1763289022631,2.0099298,3238.2,3237.9,0.002]
[1763289022847,0.4945,3238.0,3237.9,0.002]
[1763289023164,0.78417324,3238.0,3237.9,0.002]
[1763289023462,4.63523994,3238.0,3237.9,0.002]
[1763289023667,4.63498255,3238.0,3237.9,0.002]
[1763289023848,4.66495854,3238.0,3237.9,0.002]
[1763289024082,6.3852151,3238.0,3237.9,0.002]
[1763289024364,7.48897991,3238.0,3237.9,0.002]
[1763289024862,7.61270036,3238.0,3237.9,0.002]
[1763289026564,8.01820436,3238.0,3237.9,0.002]
[1763289026768,8.98211435,3238.0,3237.9,0.002]
[1763289027355,12.23511435,3238.0,3237.9,0.002]
[1763289027543,12.23511435,3238.0,3237.5,0.002]
[1763289027544,4.7922448,3237.9,3237.5,0.002]
[1763289027740,5.42495792,3237.6,3237.5,0.002]
[1763289027968,5.74434976,3237.6,3237.5,0.002]
[1763289028165,6.20734976,3237.6,3237.5,0.002]
[1763289028364,7.13563507,3237.6,3237.5,0.002]
[1763289028576,7.10565908,3237.6,3237.5,0.002]
[1763289028781,9.30494509,3237.6,3237.5,0.002]
[1763289029589,12.39365277,3237.6,3237.5,0.002]
[1763289033800,8.84098222,3237.6,3237.5,0.002]
[1763289033962,11.02423878,3237.6,3237.5,0.002]
[1763289034698,11.42974278,3237.6,3237.5,0.002]
[1763289037317,3.58681798,3237.6,3237.5,0.5002]
[1763289037504,1.42315665,3237.6,3237.5,0.5002]
[1763289037703,6.70142089,3237.6,3237.5,0.002]
[1763289037909,4.98116433,3237.6,3237.5,0.002]
[1763289038212,5.16126433,3237.6,3237.5,0.002]
[1763289038414,7.77640088,3237.6,3237.5,0.002]
[1763289038617,9.20446122,3237.6,3237.5,0.002]
[1763289039315,7.02480466,3237.6,3237.5,0.002]
[1763289039903,9.20446122,3237.6,3237.5,0.002]
[1763289041284,8.79895722,3237.6,3237.5,0.002]
[1763289048023,6.15000066,3237.6,3237.5,0.002]
[1763289048238,6.15000066,3237.6,3237.5,0.5002]
[1763289048405,6.15000066,3237.6,3237.5,0.002]
[1763289048930,6.61930066,3237.6,3237.5,0.002]
[1763289049432,7.07870066,3237.6,3237.5,0.002]
[1763289049599,8.79895722,3237.6,3237.5,0.002]
[1763289049929,7.07870066,3237.6,3237.5,0.002]
[1763289050637,8.79895722,3237.6,3237.5,0.002]
[1763289055131,6.61930066,3237.6,3237.5,0.002]
[1763289055439,10.05981378,3237.6,3237.5,0.002]
[1763289055643,10.51921378,3237.6,3237.5,0.002]
[1763289059166,10.51944292,3237.6,3237.5,0.002]
[1763289060328,10.92494692,3237.6,3237.5,0.002]
[1763289061154,1.92778132,3237.6,3237.5,0.5002]
[1763289061360,0.001,3238.3,3237.8,0.4982]
[1763289061655,0.001,3238.3,3238.2,0.6783]
[1763289062057,0.001,3238.3,3238.2,1.1298]
[1763289063315,0.4703,3238.3,3237.5,0.002]
[1763289063515,1.72025656,3237.8,3237.5,0.002]
[1763289063764,0.02997599,3237.7,3237.5,0.4535]
[1763289064060,0.001,3238.3,3237.9,0.4982]
[1763289064261,0.001,3238.3,3238.2,0.6783]
[1763289064765,0.001,3238.3,3238.2,1.1754]
[1763289065621,0.001,3238.3,3238.2,0.6783]
[1763289066623,0.001,3238.3,3238.2,1.1754]
[1763289066823,0.001,3238.3,3238.2,0.6783]
[1763289067024,0.001,3238.3,3237.5,0.002]
[1763289067025,2.15681679,3238.3,3237.5,0.002]
[1763289067232,2.7461017,3238.2,3237.5,0.4991]
[1763289067660,6.1764615,3238.1,3237.5,0.4991]
[1763289068566,3.08823075,3238.1,3238.0,0.4631]
[1763289068724,4.04840636,3238.1,3238.0,0.4631]
[1763289068928,4.04840636,3238.1,3237.5,0.4991]
[1763289069152,3.08823075,3238.1,3237.5,0.4991]
[1763289069359,3.08823075,3238.1,3238.0,0.4631]
[1763289069671,3.08823075,3238.1,3237.5,0.4991]
[1763289070286,6.1764615,3238.1,3237.5,0.4991]
[1763289071281,6.76215639,3238.2,3238.0,0.4631]
[1763289071575,7.43847203,3238.2,3238.1,0.4631]
[1763289071873,10.52662328,3238.2,3237.5,0.4991]
[1763289072537,9.85030764,3238.2,3237.5,0.4991]
[1763289072733,5.14979549,3238.2,3238.1,0.4631]
[1763289073442,5.43858377,3238.2,3238.1,0.4631]
[1763289075177,1.21669172,3238.2,3238.1,0.4631]
[1763289075470,0.28878828,3238.2,3238.1,1.1267]
[1763289076767,0.001,3238.3,3238.1,1.1267]
[1763289076960,0.001,3238.3,3238.2,0.9615]
[1763289077699,0.001,3238.3,3238.2,2.5738609]
[1763289078690,0.001,3238.3,3238.2,5.66199628]
[1763289079300,0.001,3238.3,3238.2,2.5738609]
[1763289079475,0.001,3238.3,3238.2,0.478]
[1763289079672,0.001,3238.3,3238.2,0.9615]
[1763289080002,0.001,3238.3,3238.2,4.04963538]
[1763289080178,0.001,3238.3,3238.2,0.9615]
[1763289083073,0.001,3238.3,3238.2,4.04963538]
[1763289084699,0.001,3238.3,3238.2,0.9615]
[1763289084946,0.001,3238.3,3238.2,0.478]
[1763289085842,0.001,3238.3,3238.2,0.9615]
[1763289086343,0.001,3238.3,3238.2,4.04963538]
[1763289089501,0.001,3238.3,3238.2,0.9615]
[1763289089709,0.001,3238.3,3238.2,0.478]
[1763289091738,0.4691,3238.3,3237.9,0.002]
[1763289091960,0.001,3238.3,3238.2,0.478]
[1763289093667,0.001,3238.3,3237.9,0.4855]
[1763289093668,0.4691,3238.3,3237.9,0.002]
[1763289093870,0.75801926,3238.3,3237.9,0.002]
[1763289094068,0.4691,3238.3,3237.9,3.09041943]
[1763289094433,0.001,3238.3,3237.9,3.09041943]
[1763289094774,0.001,3238.3,3237.9,3.54191943]
[1763289095063,0.28992078,3238.3,3237.9,3.54191943]
[1763289095274,0.001,3238.3,3237.9,3.54191943]
[1763289095592,0.28992078,3238.3,3237.9,3.54191943]
[1763289095874,0.001,3238.3,3237.9,3.54191943]
[1763289096035,0.001,3238.3,3238.2,0.4727]
[1763289096036,0.28992078,3238.3,3238.2,0.4727]
[1763289096375,0.001,3238.3,3238.2,2.72707083]
[1763289096662,0.001,3238.3,3238.2,0.9242]
[1763289097368,0.001,3238.3,3238.2,3.17857083]
[1763289097669,0.001,3238.3,3238.2,3.67857083]
[1763289097837,0.001,3238.3,3238.2,6.76670621]
[1763289100995,0.001,3238.3,3238.2,7.90044701]
[1763289102158,0.001,3238.3,3238.2,8.30595101]
[1763289104293,0.001,3238.3,3238.2,7.90044701]
[1763289111003,0.001,3238.3,3238.2,7.2572315]
[1763289111596,0.001,3238.3,3238.2,6.7572315]
[1763289112568,0.001,3238.3,3238.2,4.69457618]
[1763289112907,0.9489,3238.3,3237.9,3.09038599]
[1763289113090,0.2547,3238.2,3237.9,3.09038599]
[1763289113289,0.7307,3238.2,3237.9,7.78996281]
[1763289113608,0.7307,3238.2,3237.9,4.70154131]
[1763289113812,0.2547,3238.2,3237.9,7.78996281]
[1763289114701,0.2547,3238.2,3237.9,4.70154131]
[1763289116082,0.2547,3238.2,3237.9,7.78996281]
[1763289117127,0.2547,3238.2,3237.9,4.70154131]
[1763289117616,0.2547,3238.2,3237.9,7.78996281]
[1763289118290,0.7307,3238.2,3237.9,4.70154131]
[1763289118776,0.7307,3238.2,3237.9,7.78996281]
[1763289118979,0.4698,3238.0,3237.9,4.70154131]
[1763289119617,0.4698,3238.0,3237.9,0.002]
[1763289119831,0.9458,3238.0,3237.9,0.002]
[1763289120391,0.9458,3238.0,3237.9,3.0904215]
[1763289121394,0.9458,3238.0,3237.9,0.002]
[1763289121790,1.23489963,3238.0,3237.9,0.002]
[1763289122479,0.75889963,3238.0,3237.9,0.002]
[1763289122681,0.28909963,3238.0,3237.9,0.002]
[1763289122881,0.4719,3238.0,3237.9,0.002]
[1763289123320,0.76099963,3238.0,3237.9,0.002]
[1763289123530,0.28909963,3238.0,3237.9,1.61315532]
[1763289123694,0.476,3238.2,3237.9,1.61315532]
[1763289124720,0.476,3238.2,3237.9,0.002]
[1763289125647,0.001,3238.3,3237.9,0.002]
[1763289125648,0.001,3238.3,3238.1,2.27655532]
[1763289125922,0.001,3238.3,3238.2,0.4853]
[1763289126426,0.001,3238.3,3238.2,1.00718135]
[1763289126920,0.001,3238.3,3238.2,2.72611611]
[1763289127412,0.001,3238.3,3238.2,3.65611611]
[1763289127814,0.001,3238.3,3238.2,6.74425149]
[1763289128115,0.001,3238.3,3238.2,6.71337014]
[1763289128707,0.001,3238.3,3238.2,9.5660457]
[1763289128896,0.001,3238.3,3238.2,10.0660457]
[1763289130873,0.001,3238.3,3238.2,10.4715497]
[1763289134967,0.001,3238.3,3238.2,10.0660457]
[1763289135183,0.001,3238.3,3238.2,7.85611094]
[1763289135469,0.001,3238.3,3238.2,8.33531094]
[1763289136433,0.001,3238.3,3238.2,10.0542457]
[1763289138503,0.001,3238.3,3238.2,6.61637618]
[1763289138703,0.001,3238.3,3238.2,8.33531094]
[1763289139405,0.001,3238.3,3238.2,10.0542457]
[1763289143110,0.001,3238.3,3238.2,6.13717618]
[1763289143309,0.001,3238.3,3238.2,7.85611094]
[1763289143614,0.001,3238.3,3238.2,10.0542457]
[1763289144692,0.001,3238.3,3238.2,10.4597497]
[1763289145305,0.001,3238.3,3238.2,10.0542457]
[1763289145629,0.001,3238.3,3238.2,9.5750457]
[1763289145777,0.001,3238.3,3238.2,10.0542457]
[1763289147115,0.001,3238.3,3238.2,9.5750457]
[1763289147479,0.001,3238.3,3238.2,10.0542457]
[1763289151611,0.001,3238.3,3238.2,9.5750457]
[1763289151818,0.001,3238.3,3238.2,10.0542457]
[1763289156342,0.001,3238.3,3238.2,9.5750457]
[1763289157236,0.4574,3238.3,3238.2,7.37081094]
[1763289157416,0.4574,3238.3,3238.2,6.87081094]
[1763289157612,0.001,3238.3,3238.2,6.87081094]
[1763289158340,0.4574,3238.3,3238.2,6.87081094]
[1763289159407,0.9366,3238.3,3238.2,6.87081094]
[1763289159757,0.001,3238.3,3238.2,9.0633457]
[1763289161139,0.001,3238.3,3238.2,10.0195457]
[1763289163711,0.001,3238.3,3238.2,11.3561019]
[1763289164051,0.001,3238.6,3238.2,11.3561019]
[1763289164219,0.001,3238.6,3238.5,5.54521032]
[1763289164715,0.001,3238.6,3238.5,6.00141032]
[1763289165055,0.001,3238.6,3238.5,9.08925963]
[1763289166010,0.001,3238.6,3238.5,8.63305963]
[1763289167719,0.001,3238.6,3238.5,9.08925963]
[1763289168363,0.001,3238.6,3238.5,10.01925963]
[1763289171322,0.001,3238.6,3238.5,9.68668984]
[1763289174360,0.001,3238.6,3238.5,10.61774204]
[1763289174572,0.001,3238.6,3238.5,11.07394204]
[1763289182194,0.001,3238.6,3238.5,11.47944604]
[1763289185547,0.001,3238.6,3238.5,11.02324604]
[1763289185776,0.001,3238.6,3238.5,11.52264604]
[1763289186691,0.001,3238.6,3238.5,11.02324604]
[1763289187055,0.001,3238.6,3238.5,11.52264604]
[1763289187254,0.001,3238.6,3238.5,11.02324604]
[1763289188455,0.001,3238.6,3238.5,11.52264604]
[1763289188788,0.001,3238.6,3238.5,10.61774204]
[1763289188979,0.921,3238.6,3238.5,8.31717662]
[1763289191089,0.4591,3238.6,3238.5,8.31717662]
[1763289191290,0.921,3238.6,3238.5,8.31717662]
[1763289191492,0.001,3238.6,3238.5,8.78627662]
[1763289196412,0.001,3238.6,3238.5,7.85522442]
[1763289197717,0.48,3238.6,3238.5,7.38612442]
[1763289197903,0.9417,3238.6,3238.5,7.38612442]
[1763289198302,0.48,3238.6,3238.5,7.38612442]
[1763289198512,0.001,3238.6,3238.5,7.87232442]
[1763289199386,0.001,3238.6,3238.5,7.38612442]
[1763289199583,0.48,3238.6,3238.5,7.38612442]
[1763289199790,0.9417,3238.6,3238.5,7.38612442]
[1763289199988,0.48,3238.6,3238.5,7.38612442]
[1763289201828,0.001,3238.6,3238.5,7.38612442]
[1763289202393,0.001,3238.6,3238.5,7.87232442]
[1763289205434,0.9417,3238.6,3238.5,7.38612442]
[1763289206094,0.93398157,3238.6,3238.5,0.6526]
[1763289206290,1.22363754,3238.6,3238.3,0.002]
[1763289206526,1.22363754,3238.6,3237.9,0.002]
[1763289206527,0.479,3238.4,3237.9,0.002]
[1763289206736,0.0025,3238.0,3237.9,3.09041698]
[1763289207096,0.4642,3238.0,3237.9,3.09041698]
[1763289208131,0.4642,3238.0,3237.9,0.002]
[1763289212240,0.4642,3238.0,3237.9,0.282]
[1763289212646,0.81944719,3238.0,3237.9,0.282]
[1763289212847,0.4642,3238.0,3237.9,0.282]
[1763289213355,3.55252612,3238.0,3237.9,0.282]
[1763289213506,3.8405175,3238.0,3237.9,0.282]
[1763289214124,3.95803012,3238.0,3237.9,0.282]
[1763289214508,4.24586571,3238.0,3237.9,0.282]
[1763289214704,5.16856425,3238.0,3237.9,0.282]
[1763289217028,5.45056425,3238.0,3237.9,0.282]
[1763289218564,5.48054024,3238.0,3237.9,0.282]
[1763289218764,6.61428104,3238.0,3237.9,0.282]
[1763289218966,6.58430505,3238.0,3237.9,0.282]
[1763289224755,3.09047493,3238.0,3237.9,0.282]
[1763289224949,1.38689854,3238.0,3237.9,0.282]
[1763289225249,0.0025,3238.0,3237.9,0.282]
[1763289225453,0.0025,3238.0,3237.9,3.3704215]
[1763289225886,0.0025,3238.0,3237.9,0.282]
[1763289226287,0.4603,3238.0,3237.9,0.282]
[1763289226485,0.0025,3238.0,3237.9,0.282]
[1763289226687,0.4603,3238.0,3237.9,0.282]
[1763289227457,0.0025,3238.0,3237.9,0.282]
[1763289227657,0.4603,3238.0,3237.9,0.282]
[1763289228092,0.865804,3238.0,3237.9,0.282]
[1763289228296,4.5106232,3238.0,3237.9,0.282]
[1763289229189,4.7926232,3238.0,3237.9,0.282]
[1763289230992,4.7979538,3238.0,3237.9,0.282]
[1763289233802,6.4088579,3238.0,3237.9,0.282]
[1763289237768,7.5425987,3238.0,3237.9,0.282]
[1763289238293,7.8245987,3238.0,3237.9,0.282]
[1763289245414,5.0658906,3238.0,3237.9,0.7772]
[1763289245617,0.2873306,3238.0,3237.9,0.7772]
[1763289246120,0.7512306,3238.0,3237.9,0.282]
[1763289246293,1.2146306,3238.0,3237.9,0.282]
[1763289246497,0.2873306,3238.0,3237.9,0.282]
[1763289247226,3.87315672,3238.0,3237.9,0.282]
[1763289247420,1.76343668,3238.0,3237.9,0.282]
[1763289247720,1.2150306,3238.0,3237.9,0.282]
[1763289248090,0.7848306,3238.0,3237.9,0.282]
[1763289249320,0.2873306,3238.0,3237.9,0.7772]
[1763289249842,0.28920821,3238.0,3237.9,0.7772]
[1763289250419,0.28920821,3238.0,3237.9,0.282]
[1763289251226,0.28920821,3238.0,3237.9,0.7772]
[1763289251433,0.28920821,3238.0,3237.9,1.2668]
[1763289252209,0.28920821,3238.0,3237.9,4.79075948]
[1763289253663,0.28920821,3238.2,3237.9,4.79075948]
[1763289253830,0.28920821,3238.1,3238.0,0.4896]
[1763289254148,0.001,3238.3,3238.0,0.4896]
[1763289254149,0.28920821,3238.2,3238.0,0.4896]
[1763289254316,0.28920821,3238.1,3238.0,0.4896]
[1763289254722,0.28920821,3238.1,3238.0,0.9561]
[1763289254924,0.28920821,3238.2,3238.0,0.9561]
[1763289255131,0.001,3238.3,3238.2,0.1906]
[1763289255328,0.28994452,3238.3,3238.0,0.33488185]
[1763289255647,0.28894452,3238.2,3238.1,0.6754]
[1763289256054,0.28894452,3238.2,3238.1,1.1419]
[1763289256347,0.28894452,3238.2,3238.1,2.86216455]
[1763289256527,0.28894452,3238.2,3238.1,1.1419]
[1763289257111,0.001,3238.3,3238.1,1.4219]
[1763289257350,0.001,3238.3,3238.2,0.9575]
[1763289257551,0.28994452,3238.3,3238.2,0.9575]
[1763289257752,0.001,3238.3,3238.2,0.9575]
[1763289258317,0.001,3238.3,3238.2,4.77664749]
[1763289258755,0.001,3238.3,3238.2,1.68851211]
[1763289258914,0.001,3238.3,3238.2,0.28]
[1763289259354,0.001,3238.3,3238.2,0.7465]
[1763289259563,0.001,3238.3,3238.2,1.2375]
[1763289260329,0.001,3238.3,3238.2,4.32563538]
[1763289260533,0.001,3238.3,3238.2,1.2375]
[1763289261438,0.001,3238.3,3238.2,0.7465]
[1763289262054,0.001,3238.3,3238.2,3.83463538]
[1763289262628,0.001,3238.3,3238.2,4.32563538]
[1763289263377,0.001,3238.3,3238.2,0.28]
[1763289263378,0.9178,3238.3,3238.2,0.28]
[1763289263529,4.55818379,3238.3,3238.2,0.28]
[1763289264028,4.99366378,3238.3,3238.2,0.28]
[1763289264662,4.96368779,3238.3,3238.2,0.28]
[1763289268163,0.99054377,3238.3,3238.2,0.28]
[1763289268665,0.72673731,3238.3,3238.2,0.28]
[1763289268839,1.20633731,3238.3,3238.2,0.28]
[1763289269354,4.29437733,3238.3,3238.2,0.28]
[1763289269558,1.20633731,3238.3,3238.2,0.28]
[1763289270870,4.29437733,3238.3,3238.2,0.28]
[1763289271034,3.81477733,3238.3,3238.2,0.28]
[1763289271373,1.63698758,3238.3,3238.2,0.28]
[1763289272645,0.28953731,3238.3,3238.2,0.7465]
[1763289273552,0.28953731,3238.3,3238.2,1.2375]
[1763289273753,0.28953731,3238.3,3238.2,0.28]
[1763289275596,0.28953731,3238.3,3238.2,0.7791]
[1763289277594,0.28953731,3238.3,3238.2,1.2411]
[1763289277896,0.28953731,3238.3,3238.2,0.7791]
[1763289280351,0.28622219,3238.3,3238.2,0.7791]
[1763289281690,0.28622219,3238.3,3238.2,0.28]
[1763289281880,4.62846973,3238.3,3238.2,0.28]
[1763289282683,0.28622219,3238.3,3238.2,0.7791]
[1763289283627,1.13412619,3238.3,3238.2,0.28]
[1763289283784,4.69666621,3238.3,3238.2,0.28]
[1763289283970,4.97666621,3238.3,3238.2,0.28]
[1763289284172,5.0066422,3238.3,3238.2,0.28]
[1763289284374,6.16015622,3238.3,3238.2,0.28]
[1763289284575,6.13018023,3238.3,3238.2,0.28]
[1763289284787,7.29389702,3238.3,3238.2,0.28]
[1763289284997,7.26392103,3238.3,3238.2,0.28]
[1763289292609,7.26492103,3238.3,3238.2,0.28]
[1763289303861,5.2750448,3238.2,3237.9,0.002]
[1763289304163,1.5392448,3237.5,3237.2,0.002]
[1763289304334,6.94812701,3237.3,3237.2,0.002]
[1763289304667,8.78270458,3237.3,3237.2,0.002]
[1763289304822,10.48447403,3237.3,3237.2,0.002]
[1763289305024,10.60826225,3237.3,3237.2,0.002]
[1763289306476,6.75311857,3237.3,3237.2,0.002]
[1763289306775,10.19364767,3237.3,3237.2,0.002]
[1763289307334,10.19591801,3237.3,3237.2,0.002]
[1763289310979,7.90232349,3237.3,3237.2,0.002]
[1763289311361,8.36942349,3237.3,3237.2,0.002]
[1763289314085,7.90232349,3237.3,3237.2,0.002]
[1763289314767,8.39282349,3237.3,3237.2,0.002]
[1763289316594,7.90232349,3237.3,3237.2,0.002]
[1763289316765,7.88922349,3237.3,3237.2,0.002]
[1763289317084,8.29892349,3237.3,3237.2,0.002]
[1763289317772,7.88922349,3237.3,3237.2,0.4798]
[1763289319669,8.29915765,3237.3,3237.2,0.002]
[1763289322693,8.29915765,3237.3,3237.2,0.4798]
[1763289322694,7.48395365,3237.3,3237.2,0.4798]
[1763289322861,1.42246749,3237.3,3237.2,0.9737]
[1763289323059,4.5114614,3237.3,3237.2,0.9737]
[1763289323878,4.9169654,3237.3,3237.2,0.9737]
[1763289324381,3.7832246,3237.3,3237.2,0.9737]
[1763289325795,0.28872669,3237.3,3237.2,0.9737]
[1763289325999,0.28872669,3237.7,3237.2,4.06278933]
[1763289326202,0.28872669,3237.6,3237.3,0.4939]
[1763289326517,0.28972669,3237.5,3237.3,0.4939]
[1763289326813,0.28872669,3237.4,3237.3,0.4939]
[1763289327175,0.28872669,3237.4,3237.3,0.9717]
[1763289329642,4.99165976,3237.4,3237.3,0.9717]
[1763289329908,6.36970216,3237.4,3237.3,0.4778]
[1763289330114,6.36970216,3237.4,3237.2,0.002]
[1763289330115,0.405504,3237.3,3237.2,0.002]
[1763289330281,3.7832246,3237.3,3237.2,0.002]
[1763289330480,3.7832246,3237.3,3237.2,0.4798]
[1763289331813,5.14399421,3237.3,3237.2,0.002]
[1763289332177,5.22509421,3237.3,3237.2,0.4798]
[1763289333489,5.22509421,3237.3,3237.2,0.9737]
[1763289333827,5.22509421,3237.3,3237.2,5.67682391]
[1763289333828,0.28872669,3237.3,3237.2,5.67682391]
[1763289334127,0.001,3237.5,3237.2,5.6768088]
[1763289334290,0.28893034,3237.8,3237.4,2.09183458]
[1763289334493,0.001,3237.9,3237.8,0.468]
[1763289334691,0.001,3237.9,3237.8,0.67620346]
[1763289334892,0.001,3237.9,3237.8,1.12740346]
[1763289336322,0.001,3237.9,3237.8,4.21592035]
[1763289347758,0.001,3237.9,3237.8,4.24680551]
[1763289348052,0.6032,3237.9,3237.2,0.002]
[1763289348209,1.61893458,3237.7,3237.2,0.002]
[1763289348609,0.4934,3237.6,3237.2,0.002]
[1763289348847,2.01373458,3237.3,3237.2,0.002]
[1763289349050,2.01853458,3237.3,3237.2,0.002]
[1763289349610,0.4045,3237.3,3237.2,0.002]
[1763289349816,0.405504,3237.4,3237.2,0.47]
[1763289350056,0.405504,3237.4,3237.3,0.468]
[1763289351150,0.001,3237.9,3237.7,0.468]
[1763289351335,0.28933516,3238.6,3238.2,0.968]
[1763289351535,0.001,3238.6,3238.5,2.1017408]
[1763289351732,0.001,3238.6,3238.5,3.71577538]
[1763289352062,0.001,3238.6,3238.5,3.66697538]
[1763289353046,0.001,3238.6,3238.5,6.75482469]
[1763289353216,0.001,3238.6,3238.5,5.14079011]
[1763289353848,0.405504,3238.5,3237.9,0.4512]
[1763289354030,0.405504,3238.5,3237.9,0.6467]
[1763289354236,0.405504,3238.5,3237.9,3.73511676]
[1763289354945,0.405504,3238.5,3237.9,3.28391676]
[1763289355171,0.405504,3238.5,3237.9,0.1955]
[1763289355365,0.405504,3238.5,3237.9,3.28391867]
[1763289355567,0.001,3238.6,3237.9,3.73511867]
[1763289355868,0.406504,3238.6,3237.9,3.73511867]
[1763289357582,0.406504,3238.6,3237.8,3.08851074]
[1763289357583,0.78172146,3238.5,3237.5,6.62880616]
[1763289357778,0.31829745,3238.4,3237.5,6.62880616]
[1763289358274,0.52337599,3238.4,3237.5,6.62880616]
[1763289358448,0.28832146,3238.3,3237.5,6.62880616]
[1763289359904,0.02997599,3238.2,3237.5,6.62880616]
[1763289360108,3.08785267,3238.5,3237.5,6.62880616]
[1763289360109,0.001,3238.6,3238.2,0.5368]
[1763289360283,0.001,3238.6,3238.5,4.35708284]
[1763289360486,0.001,3238.6,3238.5,5.24399112]
[1763289361815,0.001,3238.6,3238.5,8.33184043]
[1763289362015,0.001,3238.6,3238.2,0.0688]
[1763289362174,0.001,3238.6,3238.3,1.1337408]
[1763289362598,0.001,3238.6,3237.7,0.4512]
[1763289362781,0.001,3238.6,3237.5,0.002]
[1763289362782,3.15524604,3238.6,3237.5,0.002]
[1763289363001,0.3186222,3238.5,3237.5,0.002]
[1763289363195,0.8120222,3238.5,3237.5,0.002]